Cogmind - Beta 9 @@@ ROGUE MODE // 2019.10.22 @ 02:45:54 Player: eg0nspengler Result: Destroyed by G-47 Trooper with Particle Gun Performance ------------- Evolutions (2) 1000 Regions Visited (3) 600 Robots Destroyed (56) 280 Value Destroyed (1360) 1360 Prototype IDs (3) 60 Alien Tech Used (0) 0 Bonus (0) 0 TOTAL SCORE: 3300 Bonus ------- None Cogmind --------- Core Integrity 0/550 Matter 300/300 Energy 160/160 System Corruption 0% Temperature Cool (9) Location -8/Materials Parts ------- Power (1) Light Nuclear Core Propulsion (3) Utility (4) Utility Shielding Weapon (3) Inventory (4) Terrain Scan Processor Particle Charger Heavy Assault Rifle Peak State ------------ Power Ion Engine Propulsion Aluminum Leg Aluminum Leg Aluminum Leg Utility Small Storage Unit Improved Power Shielding Weapon Shielding Medium Armor Plating Weapon Improved Medium Laser Heavy Particle Cannon Mini Grenade Launcher Inventory Aluminum Leg Particle Charger Utility Shielding Shock Rifle Heavy Assault Rifle [Rating: 20] Favorites ----------- Power Ion Engine Engine Ion Engine Power Core Light Nuclear Core Propulsion Aluminum Leg Treads Light Treads Leg Aluminum Leg Wheel Wheel Hover Unit Improved Hover Unit Utility Small Storage Unit Device Particle Charger Storage Small Storage Unit Protection Improved Power Shielding Weapon Particle Gun Energy Gun Particle Gun Energy Cannon Particle Cannon Ballistic Gun Light Assault Rifle Ballistic Cannon Light Cannon Launcher Mini Grenade Launcher Build | -11 -10 -9 -8 ------- Run | Scr Mat Mat Mat Slots Evolved 4 | . . 2 2 Power . | . . . . Propulsion 1 | . . 1 . Utility 2 | . . 1 1 Weapon 1 | . . . 1 Parts Attached 78 | 6 13 34 25 Power 6 | 1 3 1 1 Engine 5 | 1 3 1 . Core 1 | . . . 1 Reactor . | . . . . Propulsion 17 | 2 2 9 4 Treads 2 | . . 2 . Leg 12 | 2 2 6 2 Wheel 2 | . . 1 1 Hover 1 | . . . 1 Flight . | . . . . Utility 10 | 1 1 4 4 Device 1 | . . . 1 Storage 3 | 1 1 1 . Processor . | . . . . Hackware . | . . . . Protection 6 | . . 3 3 Artifact . | . . . . Weapon 45 | 2 7 20 16 Energy Gun 15 | 1 3 7 4 Energy Cannon 7 | . . 4 3 Ballistic Gun 10 | 1 2 3 4 Ballistic Cannon 1 | . . 1 . Launcher 12 | . 2 5 5 Special Weapon . | . . . . Impact Weapon . | . . . . Slashing Weapon . | . . . . Piercing Weapon . | . . . . Special Melee Weapon . | . . . . Unidentified Prototypes . | . . . . Parts Lost 21 | . 1 8 12 Power 2 | . 1 . 1 Propulsion 8 | . . 4 4 Utility 3 | . . . 3 Weapon 8 | . . 4 4 Highest Loss Streak 6 | . 1 6 5 Average Slot Usage (%) 92 | . 98 93 76 Engine 11 | . 13 11 8 Leg 24 | . 27 25 18 Storage 18 | . 27 14 7 Protection 12 | . . 18 24 Energy Gun 11 | . 17 9 4 Energy Cannon 3 | . . 5 4 Ballistic Gun 5 | . 9 4 2 Launcher 1 | . . . 4 Naked Turns . | . . . . Heaviest Build 29 | 10 18 25 29 Greatest Support 40 | 20 20 40 30 Greatest Overweight (x) 5 | . . 5 3 Average Overweight (x) . | . . . . Largest Inventory Capacity 10 | 6 8 10 6 Average Capacity 7 | 5 7 7 5 Most Carried 8 | 3 8 8 6 Average Carried 5 | 1 7 5 4 Final Capacity 4 | . . . 4 Final Carried 3 | . . . 3 Class Distribution -------------------- 82% | Mutant 16% | Scavenger-Mutant Dominant Class ---------------- Mutant | -10/Materials Mutant | -9/Materials Mutant | -8/Materials Resources | -11 -10 -9 -8 ----------- Run | Scr Mat Mat Mat Matter Collected 1295 | 268 154 525 348 Remotely . | . . . . Salvage Created 1727 | 88 342 748 549 Parts 128 | 5 30 68 25 Haulers Intercepted 2 | . . 1 1 Recyclers Shooed 5 | 2 . . 3 Parts Field Recycled . | . . . . Retrieved Matter . | . . . . Parts Self-Destructed . | . . . . Prevented . | . . . . Kills | -11 -10 -9 -8 ------- Run | Scr Mat Mat Mat Combat Hostiles Destroyed 36 | . 8 22 6 Guns 18 | . 7 9 2 Cannons 5 | . . 4 1 AOE 13 | . 1 9 3 Classes Destroyed 10 | 2 5 3 . Worker 5 | . 1 2 2 Builder 5 | . 2 3 . Tunneler 1 | 1 . . . Hauler 2 | . . 1 1 Recycler 3 | 1 . . 2 Watcher 4 | . 2 1 1 Swarmer 10 | . 3 7 . Grunt 18 | . 5 9 4 Duelist 1 | . . 1 . Sentry 7 | . . 5 2 Best Kill Streak 5 | 1 5 4 3 Combat Bots Only 4 | . 3 4 3 Max Kills in Single Turn 3 | 1 2 3 1 Gunslinging . | . . . . Exploded 3 | . 1 3 1 Melee . | . . . . Uniques/NPCs Destroyed . | . . . . Combat | -11 -10 -9 -8 -------- Run | Scr Mat Mat Mat Damage Taken 3344 | . 364 1425 1555 Core 799 | . 48 195 556 Absorbed by Shields . | . . . . Core Remaining (%) 77 | 100 80 51 . Volleys Fired 154 | 8 32 68 46 Largest 3 | 2 2 2 3 Hottest 161 | 70 115 133 161 Shots Fired 276 | 16 61 129 70 Gun 183 | 16 58 76 33 Cannon 67 | . . 41 26 Launcher 26 | . 3 12 11 Special . | . . . . Kinetic 85 | 8 22 45 10 Thermal 160 | 8 36 72 44 Explosive 26 | . 3 12 11 Electromagnetic 5 | . . . 5 Robot Hit Streak 16 | 4 6 16 7 Robot Miss Streak 5 | 1 4 4 5 Penetration Max . | . . . . Secondary Targets 1 | . . 1 . Max Gunslinging Chain 1 | . . 1 . Shots Hit Robots 149 | 11 30 77 31 Core Hits 94 | 4 17 47 26 Critical Hits 2 | . 1 1 . Critical Kills 1 | . 1 . . Critical Parts Destroyed 1 | . . 1 . Melee Attacks . | . . . . Impact . | . . . . Slashing . | . . . . Piercing . | . . . . Sneak Attacks . | . . . . Combat Hostiles . | . . . . Follow-up Attacks . | . . . . Damage Inflicted 3392 | 102 467 1813 1010 Guns 1391 | 102 349 572 368 Cannons 868 | . . 468 400 Explosions 1106 | . 118 769 219 Melee . | . . . . Ramming 27 | . . 4 23 Kinetic 517 | 40 134 268 75 Thermal 1684 | 62 215 772 635 Explosive 1106 | . 118 769 219 Electromagnetic 58 | . . . 58 Impact . | . . . . Slashing . | . . . . Piercing . | . . . . Highest Corruption . | . . . . Average Corruption . | . . . . Corruption Purged . | . . . . Overload Shots . | . . . . Overflow Damage 15 | . . 15 . Projectiles . | . . . . Explosions 15 | . . 15 . Melee . | . . . . Knockbacks . | . . . . Impact . | . . . . Kinetic . | . . . . Secondary . | . . . . Self-Inflicted Damage 85 | . . 3 82 Shots 3 | . . 1 2 Rammed 5 | . . . 5 Targets Rammed 6 | . . 1 5 Kicked 1 | . . 1 . Crushed . | . . . . Highest Temperature 458 | 50 130 282 458 Average Temperature 85 | 25 43 68 161 Received Heat Transfer 1221 | . 129 498 594 Effects 2 | . . . 2 Shutdowns 1 | . . . 1 Short Circuit 1 | . . . 1 Siege Activations . | . . . . Robots Corrupted . | . . . . Combat Hostiles . | . . . . Parts Fried . | . . . . Impact Corruptions . | . . . . Robots Melted . | . . . . Combat Hostiles . | . . . . Parts Melted 4 | . 2 1 1 Heat Transferred 3330 | 185 555 1480 1110 Parts Sabotaged . | . . . . Parts Stolen . | . . . . Parts Stripped . | . . . . Power Chain Reactions . | . . . . Missiles Intercepted . | . . . . Alert | -11 -10 -9 -8 ------- Run | Scr Mat Mat Mat Peak Influence 334 | 10 135 334 312 Average Influence 124 | 3 63 159 180 Maximum Alert Level 1 | . . 1 1 Low Security (%) 81 | . . . . Level 1 18 | . . . . Level 2 . | . . . . Level 3 . | . . . . Level 4 . | . . . . Level 5 . | . . . . High Security . | . . . . Max Security . | . . . . Squads Dispatched 9 | . 2 5 2 Investigation . | . . . . Extermination . | . . . . Reinforcement 8 | . 2 5 1 Assault . | . . . . Garrison 1 | . . . 1 Intercept . | . . . . Construction Impeded 2 | . . 2 . Haulers Reinforced . | . . . . Stealth | -11 -10 -9 -8 --------- Run | Scr Mat Mat Mat Distress Signals 6 | . 1 3 2 Communications Jammed . | . . . . Distress Signals . | . . . . Times Spotted 79 | . 16 39 24 Peak Tracking Total 10 | . 4 8 10 Tactical Retreats 9 | . 1 4 4 Traps | -11 -10 -9 -8 ------- Run | Scr Mat Mat Mat Traps Triggered . | . . . . Indirectly . | . . . . Trap Hack Attempts . | . . . . Triggered . | . . . . Disarmed 4 | . 4 . . Reprogrammed . | . . . . Reused . | . . . . Traps Extracted . | . . . . Installed . | . . . . Triggered . | . . . . Machines | -11 -10 -9 -8 ---------- Run | Scr Mat Mat Mat Machines Disabled 6 | . 1 3 2 Max in Single Turn 1 | . 1 1 1 Machines Sabotaged . | . . . . Garrisons Compromised . | . . . . Overloaded Fab Kills . | . . . . Fab Network Shutdowns . | . . . . Hacking | -11 -10 -9 -8 --------- Run | Scr Mat Mat Mat Machines Accessed 15 | . 9 5 1 Terminals 10 | . 6 3 1 Fabricators . | . . . . Repair Stations 2 | . 1 1 . Recycling Units 2 | . 2 . . Scanalyzers 1 | . . 1 . Garrison Access . | . . . . Total Hacks 40 | . 27 10 3 Successful 29 | . 22 4 3 Failed 11 | . 5 6 . Catastrophic 3 | . . 3 . Database Lockouts . | . . . . Manual . | . . . . Terminals 28 | . 19 6 3 Fabricators . | . . . . Repair Stations 6 | . 4 2 . Recycling Units 4 | . 4 . . Scanalyzers 2 | . . 2 . Garrison Access . | . . . . Terminal Hacks 18 | . 14 1 3 Record 4 | . 4 . . Prototype ID Bank 2 | . 2 . . Branch Access Points 1 | . . . 1 Emergency Access Points 1 | . 1 . . Alert Level 2 | . 1 . 1 Locate Traps 1 | . 1 . . Disarm Traps 1 | . 1 . . Dispatch Records 1 | . 1 . . Reinforcement Status 1 | . 1 . . Recall Reinforcements 1 | . . 1 . Hauler Manifests 1 | . . . 1 Zone Layout 2 | . 2 . . Fabricator Hacks . | . . . . Repair Station Hacks 5 | . 4 1 . Scan Component 3 | . 2 1 . Repair 2 | . 2 . . Recycling Unit Hacks 4 | . 4 . . Process 1 | . 1 . . Report Inventory 2 | . 2 . . Retrieve Matter 1 | . 1 . . Scanalyzer 2 | . . 2 . Insert Component 1 | . . 1 . Analyze 1 | . . 1 . Garrison Access Hacks . | . . . . Unauthorized Hacks . | . . . . Terminals . | . . . . Fabricators . | . . . . Repair Stations . | . . . . Recycling Units . | . . . . Scanalyzers . | . . . . Garrison Access . | . . . . Data Cores Recovered . | . . . . Used . | . . . . Hacking Detections 14 | . 8 5 1 Full Trace Events . | . . . . Feedback Events . | . . . . Feedback Blocked . | . . . . Robot Schematics Acquired . | . . . . Robots Built . | . . . . Matter . | . . . . Time . | . . . . Total Robot Build Rating . | . . . . Part Schematics Acquired 1 | . . 1 . Parts Built . | . . . . Matter . | . . . . Time . | . . . . Total Part Build Rating . | . . . . Parts Repaired 2 | . 2 . . Time 52 | . 52 . . Parts Recycled . | . . . . Recycled Matter 14 | . 14 . . Retrieved Matter 14 | . 14 . . Retrieved Components . | . . . . Parts Scanalyzed 1 | . . 1 . Part Schematics Acquired 1 | . . 1 . Parts Damaged . | . . . . Bothacking | -11 -10 -9 -8 ------------ Run | Scr Mat Mat Mat Used RIF Installer . | . . . . Robots Hacked . | . . . . Non-combat . | . . . . Combat . | . . . . Robot Hacks Applied . | . . . . Relay Couplers Released . | . . . . Robots Rewired . | . . . . Allies Hacked . | . . . . Hacks Repelled . | . . . . Allies | -11 -10 -9 -8 -------- Run | Scr Mat Mat Mat Total Allies . | . . . . Largest Group . | . . . . Highest-Rated Group . | . . . . Highest-Rated Ally . | . . . . Total Orders . | . . . . Ally Attacks . | . . . . Total Damage . | . . . . Kills . | . . . . Allies Corrupted . | . . . . Allies Melted . | . . . . Intel | -11 -10 -9 -8 ------- Run | Scr Mat Mat Mat Robot Analysis Total . | . . . . Derelict Logs Recovered . | . . . . Drone Launches . | . . . . Drone Recoveries . | . . . . Exploration | -11 -10 -9 -8 ------------- Run | Scr Mat Mat Mat Turns Passed 2923 | 84 1067 1220 552 Spaces Moved 1703 | 44 643 689 327 Core 71 | 6 . 5 60 Treads 23 | . . 23 . Legs 1586 | 38 643 652 253 Wheels 9 | . . 9 . Hover 14 | . . . 14 Flight . | . . . . Fastest Speed 50 | 50 120 100 50 Average Speed 119 | 110 120 122 115 Slowest Speed 300 | 120 120 300 200 Overloaded Moves . | . . . . Propulsion Burnouts . | . . . . Robots Hopped . | . . . . Cave-ins Triggered . | . . . . Exploration Rate (%) 38 | 4 79 48 23 Regions Visited 3 Branch Regions . Pre-discovered Areas . | . . . . Known Exits Taken . | . . . . Unknown Exits Taken 3 | 1 1 1 . Scrap Searched . | . . . . Spaces Dug 59 | . 4 . 55 Terrain Destroyed 225 | . 12 70 143 Melee . | . . . . Projectile 9 | . . 2 7 AOE 216 | . 12 68 136 Actions | -11 -10 -9 -8 --------- Run | Scr Mat Mat Mat Total 2312 | 65 876 936 435 Wait 303 | . 175 116 12 Move 1700 | 43 642 688 327 Hop . | . . . . Pick Up 40 | 8 9 16 7 Fast Attach 7 | . 5 2 . Attach 36 | 6 1 14 15 Detach 11 | . . 3 8 Swap 35 | . 7 18 10 Drop 20 | . 5 10 5 Fire 154 | 8 32 68 46 Melee . | . . . . Ram 4 | . . . 4 Kick 2 | . . 1 1 Crush . | . . . . Escape Stasis . | . . . . Rewire . | . . . . Trap . | . . . . Miscellaneous . | . . . . Route ------- -11/Scrapyard -10/Materials (discovered 4 exits: *Mat x3 / [*Min]) -9/Materials (discovered 3 exits: *Mat x2 / [*Min]) -8/Materials (discovered 2 exits: Sto x2) History --------- Turn | Location | Event 3 | -11/Scrapyard | Discovered new exit (range 15) 85 | -11/Scrapyard | Entered Materials 183 | -10/Materials | Discovered new exit (range 13) 313 | -10/Materials | Build established: Mutant 597 | -10/Materials | Repaired Aluminum Leg 624 | -10/Materials | Repaired Aluminum Leg 920 | -10/Materials | Discovered new exit (range 14) 977 | -10/Materials | Discovered new exit (range 10) 1145 | -10/Materials | Discovered new exit (range 5) 1152 | -10/Materials | Entered another Materials area 1152 | -9/Materials | Evolved 2 slots: Propulsion x1, Utility x1 1424 | -9/Materials | Discovered new exit (range 5) 1807 | -9/Materials | Lost 6 parts (3n3w) 2035 | -9/Materials | Discovered new exit (range 16) 2333 | -9/Materials | Discovered new exit (range 16) 2372 | -9/Materials | Entered another Materials area 2372 | -8/Materials | Evolved 2 slots: Utility x1, Weapon x1 2505 | -8/Materials | Identified exit to Storage 2635 | -8/Materials | Lost 3 parts (1n1u1w) 2757 | -8/Materials | Garrison activated, responded to threat 2853 | -8/Materials | Lost 4 parts (1n2u1w) 2871 | -8/Materials | Core integrity fell below 50% 2893 | -8/Materials | Core integrity fell below 20% 2922 | -8/Materials | Lost 5 parts (1p2n2w) 2924 | -8/Materials | Destroyed by G-47 Trooper with Particle Gun Last Messages --------------- 02881_ The unstable cave ceiling collapses. 02885_ Slug penetrates Wall. 02886_ The unstable cave ceiling collapses. 02889_ Slug penetrates Wall. 02889_ Mni. Grenade Launcher destroyed. 02889_ Dropped Imp. Power Shielding. 02891_ Ion Engine destroyed. 02895_ Slammed into K-01 Serf. 02899_ W-25 Informer sends out distress signal. 02900_ Slammed into K-01 Serf. 02900_ K-01 Serf destroyed. 02901_ Acquired 24 matter. 02903_ Acquired 21 matter. 02904_ K-01 Serf collects debris. 02907_ K-01 Serf cleans the Atomic Centrifuge. 02911_ Acquired Lgt. Nuclear Core. 02912_ K-01 Serf cleans the Atomic Centrifuge. 02915_ Acquired 10 matter. 02919_ K-01 Serf cleans the Atomic Centrifuge. 02922_ T-07 Excavator is excavating. Map ----- +----------------------------------------------------+ | | | | | | | | | ?????????????????????????????????????????????????? | | ?????????????????????????????????????????????????? | | ?????????????????????????????????????????????????? | | ?????????????????????????????????????????????????? | | ?????????????????????????????????????????????????? | | ?????????????????????????????????????????????????? | | ?????????????????????????????????????????????????? | | ?????????????????????????????????????????????????? | | ?????????????????????????????????????????????????? | | ?????????????????????????????????????????????????? | | ?????????????????????????????????????????????????? | | ?????????????????????????????????????????????????? | | ???????????????????####??????????????????????????? | | ???????????????????#"""??????????????????????????? | | ???????????#+#######"T"#####?????????????????????? | | ???????????? ?????????????????????? | | ????????????? ??????????????????????? | | ?????????????"" ??????????????????????? | | ?????????????"" #??????????????????????? | | ?????????????"" #??????????????????????? | | ????????????""" #??????????????????????? | | ?????????"""""" ]@#??????????????????????? | | ???????? ] #??????????????????????? | | ???????? g g #??????????????????????? | | ???????? g #??????????????????????? | | ??????????##t######## #??????????????????????? | | ??????????????????#####+#####????????????????????? | | ?????????????????## ! #????????????????????? | | ?????????????????# #????????????????????? | | ?????????????????# % #????????????????????? | | ?????????????????# """ #????????????????????? | | ???????????????### """ #????????????????????? | | ???????????????#+ + % """ #????????????????????? | | ???????????????#### #????????????????????? | | ??????????????????# #????????????????????? | | ??????????????????##/########????????????????????? | | ??????????????????##%#???????????????????????????? | | ??????????????????##=##??????????????????????????? | | ???????????????????#!##??????????#???????????????? | | ????????############ ########### #### ""??????? | | ????????#/ +*!!]= ! / ????? | | ?????>??# #!##############!####### ""??????? | | ????????#! # #????????????# #??????????????????? | | ????????# # #????###?????# #??????????????????? | | ????????# #!###### ####??# #??????????????????? | | ????????# =[# ## # #### #############??????? | +----------------------------------------------------+ Best States ------------- Heat Dissipation 31 Energy Generation 14 Energy Capacity 250 Matter Stores 300 Matter Capacity 300 Sight Range 16 Terrain Scan Density 10 Armor Coverage 225 Power Shielding 66 Utility Shielding 33 Weapon Shielding 33 Evasion (%) 50 Recoil Reduction 2 Item Schematics ----------------- Weapon Shielding | -9/Materials | Scanalyzed Robot Schematics ------------------ None Fabricated ------------ Nothing Alien Tech Used ----------------- None Achievements -------------- GoHome() Remodeling Troublemaker Challenges ------------ None Game ------ Seed ImprinterBarrageWand Manual? 0 Play Time 01:02:13 Cumulative 5.7 hours Start 2019.10.22 @ 01:44:46 End 2019.10.22 @ 02:45:54 Sessions 3 Manual Loads 0 Difficulty Rogue Special Mode None Game No. 10 Rogue 10 Adventurer 0 Explorer 0 Win Type - Total 0 Types 0/0/0/0/0/0/0 Lore% 2 Gallery% 9 Achievement% 10 Wizard Run 0 Options --------- ASCII 0 Keyboard 0 Movement Mouse Keybinds 0 Fullscreen 2 Font 18/X11Bold Map View 76x50 Tactical HUD 1 Map Filters NONE Filters NONE Steam 1 RUN: 664f95ac-8f02-429b-b70a-b0561915b209